[Event "XVII Profigaia Open 2017"]
[Site "Gaia"]
[Date "2017.06.14"]
[Round "1"]
[White "Duarte, Francisco"]
[Black "Figueiredo, Bruno"]
[Result "0-1"]
[ECO "D80"]
[WhiteElo "1154"]
[BlackElo "1914"]
[Annotator "NA RC"]
[PlyCount "34"]
[EventDate "2017.??.??"]
[EventType "swiss"]
[EventCountry "POR"]
[SourceTitle "playchess.com"]
[Source "ChessBase"]
[SourceQuality "1"]
[TimeControl "5400+30"]

{[%evp 13,32,-40,32767,-77,-97,-94,-97,-82,-63,-102,-98,-681,-730,-717,-735,-1000,-793,-839,-851,-1393,-1429]} 1. d4 {[%emt 0:10:51]} Nf6 {[%emt 0:04:52]} 2. c4 {[%emt 0:00:45]} g6 {[%emt 0:00:07]} 3. Nc3 {[%emt 0:00:32]} d5 {[%emt 0:00:09]} 4. Bg5 {[%emt 0:00:53]} Ne4 {[%emt 0:00:15]} 5. Nxe4 {[%emt 0:00:39]} dxe4 {[%emt 0:00:11]} 6. f3 {[%emt 0:00:22]} Bg7 {[%emt 0:00:44]} 7. e3 {[%emt 0:01:01]} c5 {[%emt 0:00:57]} 8. Ne2 {[%emt 0:04:16]} cxd4 {[%emt 0:01:28]} 9. exd4 {[%emt 0:00:29] [#]} exf3 $1 {[%emt 0:00:17]} 10. gxf3 {[%emt 0:00:25]} Nc6 {[%emt 0:00:25]} 11. d5 {[%emt 0:01:08]} Ne5 {[%emt 0:00:31]} 12. Qc2 $2 {[%emt 0:00:40]} (12. Nc3 $17) 12... Nxf3+ {[%emt 0:00:19]} 13. Kf2 {[%emt 0:00:40]} Nxg5 {[%emt 0:00:09]} 14. h4 {[%emt 0:00:48]} Bf5 {[%emt 0:00:06]} 15. Qb3 {[%emt 0:00:51]} Ne4+ {[%emt 0:00:07]} 16. Ke1 {[%emt 0:00:10]} Qa5+ $19 {[%emt 0:00:22]} 17. Kd1 {[%emt 0:03:17]} Qd2# 0-1

[Event "XVII Profigaia Open 2017"]
[Site "Gaia"]
[Date "2017.06.14"]
[Round "1"]
[White "Borges, Afonso Maria De Alm"]
[Black "Araujo, Jose Verissimo"]
[Result "0-1"]
[ECO "B46"]
[WhiteElo "1124"]
[BlackElo "1809"]
[Annotator "NA RC"]
[PlyCount "52"]
[EventDate "2017.??.??"]
[EventType "swiss"]
[EventCountry "POR"]
[SourceTitle "playchess.com"]
[Source "ChessBase"]
[SourceQuality "1"]
[TimeControl "5400+30"]

{[%evp 8,42,44,27,35,13,28,13,20,0,32767,-14,-4,-90,-83,-248,-233,-218,32767,-230,-224,-238,-226,-242,-253,-265,-239,-222,-211,-244,-252,-271,-255,-282,-291,-356,-384]} 1. e4 {[%emt 0:26:50]} c5 {[%emt 0:00:44]} 2. Nf3 {[%emt 0:00:08]} e6 {[%emt 0:00:08]} 3. d4 {[%emt 0:00:09]} cxd4 {[%emt 0:00:10]} 4. Nxd4 {[%emt 0:00:06]} a6 {[%emt 0:00:35]} 5. Nc3 {[%emt 0:00:18]} Nc6 {[%emt 0:00:12]} 6. Be3 {[%emt 0:01:17]} Nf6 {[%emt 0:00:23] LiveBook: 624 Games} 7. Be2 {[%emt 0:00:38]} Bb4 {[%emt 0:01:56] B46: Sicilian: Taimanov: 5 Nc3 a6} (7... d6 8. O-O Be7 9. f4 O-O 10. a4 Bd7 11. Kh1 Qc7 12. Nb3 b6 13. Bf3 Rab8 14. g4 Bc8 15. g5 Nd7 16. Bg2 Re8 17. Rf3 g6 18. Rh3 Bf8 19. Qe1 Bg7 20. Qh4 Nf8 21. f5 Bxc3 22. f6 h5 23. bxc3 e5 24. Rg3 Nd8 {1-0 (32) Vachier Lagrave,M (2758)-Movsesian,S (2658) Berlin 2015}) 8. a3 $146 {[%emt 0:00:41]} ({Predecessor:} 8. O-O Bxc3 9. bxc3 Qc7 10. Nxc6 bxc6 11. Bd3 c5 12. c4 Bb7 13. f3 h6 14. Qe1 e5 {½-½ (14) Quintin Navarro,A (2349)-Korneev,O (2594) La Roda 2017}) 8... Bxc3+ {[%emt 0:00:37]} 9. bxc3 {[%emt 0:00:01]} Nxe4 {[%emt 0:01:03]} 10. Qd3 {[%emt 0:02:20]} (10. Nxc6 $11 {remains equal.} bxc6 11. Bf3) 10... d5 {[%emt 0:00:28]} 11. O-O $2 {[%emt 0:00:25]} (11. Nxc6 $17 bxc6 12. f3) 11... Ne5 {[%emt 0:00:34]} 12. Qd1 {[%emt 0:03:10]} Nxc3 {[%emt 0:00:12]} 13. Qe1 {[%emt 0:01:44]} Nxe2+ {[%emt 0:00:01]} 14. Qxe2 {[%emt 0:00:04]} O-O {[%emt 0:00:38]} 15. f4 Nc4 16. Kh1 {[%emt 0:06:33]} Nxe3 {[%emt 0:01:10]} 17. Qxe3 {[%emt 0:00:32]} Qf6 {[%emt 0:00:56]} 18. Rf2 {[%emt 0:02:08]} Bd7 {[%emt 0:00:15]} 19. Raf1 {[%emt 0:02:31]} Rfe8 {[%emt 0:00:34]} 20. Qc3 Rac8 21. Qb4 Rc4 $19 22. Qxb7 {[%emt 0:09:19]} Bc8 {[%emt 0:01:21]} 23. Qb6 {[%emt 0:01:54]} Qxd4 {[%emt 0:00:37]} 24. Qxd4 {[%emt 0:00:28]} Rxd4 {[%emt 0:00:01]} 25. h3 {[%emt 0:00:17]} Bd7 {[%emt 0:02:05]} 26. Re2 Bb5 {[%emt 0:00:30]} 0-1

[Event "XVII Profigaia Open 2017"]
[Site "Gaia"]
[Date "2017.06.14"]
[Round "1"]
[White "Oliveira, Afonso Duarte Q"]
[Black "Areal, Pedro"]
[Result "0-1"]
[ECO "C11"]
[WhiteElo "1104"]
[BlackElo "1771"]
[Annotator "NA RC"]
[PlyCount "56"]
[EventDate "2017.??.??"]
[EventType "swiss"]
[EventCountry "POR"]
[SourceTitle "playchess.com"]
[Source "ChessBase"]
[SourceQuality "1"]
[TimeControl "5400+30"]

1. e4 {[%emt 0:00:00]} e6 {[%emt 0:03:06]} 2. Nf3 {[%emt 0:00:00]} d5 {[%emt 0:00:17]} 3. Nc3 {[%emt 0:00:00]} Nf6 {[%emt 0:02:41]} 4. e5 {[%emt 0:00:29]} Nfd7 {[%emt 0:02:46]} 5. d4 {[%emt 0:00:14]} a6 {[%emt 0:01:57]} 6. Bd3 {[%emt 0:00:47]} c5 {[%emt 0:00:50]} 7. Be3 {[%emt 0:00:29]} cxd4 {[%emt 0:01:06]} 8. Bxd4 Nc6 {[%emt 0:00:37]} 9. Be3 {[%emt 0:00:39]} Ndxe5 {[%emt 0:01:54]} 10. Be2 {[%emt 0:01:03]} Bd6 {[%emt 0:05:37]} 11. O-O {[%emt 0:02:09]} O-O {[%emt 0:04:44]} 12. Bc5 {[%emt 0:07:43]} Bxc5 {[%emt 0:02:42]} 13. Nxe5 {[%emt 0:00:12]} Nxe5 {[%emt 0:00:19]} 14. Bd3 {[%emt 0:00:22]} Nxd3 {[%emt 0:03:15]} 15. Qxd3 {[%emt 0:00:17]} Bd7 {[%emt 0:03:40]} 16. h3 {[%emt 0:03:11]} Ba7 {[%emt 0:04:11]} 17. Ne2 {[%emt 0:01:34]} Qh4 {[%emt 0:03:36]} 18. c4 {[%emt 0:00:51]} Qxc4 {[%emt 0:02:05]} 19. Qg3 {[%emt 0:00:04]} Qxe2 {[%emt 0:00:55]} 20. Rfe1 {[%emt 0:00:43]} Qh5 {[%emt 0:01:19]} 21. Re5 {[%emt 0:00:27]} Qh6 {[%emt 0:01:05]} 22. Qg4 {[%emt 0:00:55]} Rac8 {[%emt 0:02:06]} 23. Kh2 {[%emt 0:00:54]} Bb8 {[%emt 0:00:19]} 24. Rae1 {[%emt 0:07:09]} f6 {[%emt 0:01:53]} 25. R1e3 {[%emt 0:01:02]} Bxe5+ {[%emt 0:00:21]} 26. Kh1 {[%emt 0:00:28]} Rc1+ {[%emt 0:00:20]} 27. Qd1 {[%emt 0:00:13]} Rxd1+ {[%emt 0:00:06]} 28. Re1 {[%emt 0:00:23]} Rxe1# {[%emt 0:00:02]} 0-1

[Event "XVII Profigaia Open 2017"]
[Site "Gaia"]
[Date "2017.06.15"]
[Round "2"]
[White "Silva, Luis Neves Da"]
[Black "Andrade, Nuno Filipe"]
[Result "1-0"]
[ECO "D15"]
[WhiteElo "2317"]
[BlackElo "1765"]
[Annotator "NA"]
[PlyCount "85"]
[EventDate "2017.??.??"]
[EventType "swiss"]
[EventCountry "POR"]
[SourceTitle "playchess.com"]
[Source "ChessBase"]
[SourceQuality "1"]
[TimeControl "5400+30"]

{[%evp 19,82,63,32767,63,44,61,54,65,57,57,56,34,32767,32767,0,-4,32767,32767,44,23,32767,32767,23,38,43,30,52,24,22,32767,32767,31,28,32767,58,32767,32767,32767,32767,269,273,301,289,305,500,470,521,564,472,521,32767,32767,32767,32767,245,179,158,178,358,390,445,200,372,522,29980]} 1. d4 {[%emt 0:00:00]} d5 {[%emt 0:01:27]} 2. c4 {[%emt 0:00:00]} c6 {[%emt 0:00:48]} 3. Nf3 {[%emt 0:00:00]} Nf6 {[%emt 0:00:14]} 4. Nc3 {[%emt 0:00:00]} Bf5 {[%emt 0:00:19]} 5. cxd5 {[%emt 0:00:16]} cxd5 {[%emt 0:00:30]} 6. Qb3 {[%emt 0:00:02]} Qb6 {[%emt 0:02:33]} 7. Nxd5 {[%emt 0:00:28]} Nxd5 {[%emt 0:08:25]} 8. Qxd5 {[%emt 0:00:02]} e6 {[%emt 0:00:42]} 9. Qb3 {[%emt 0:00:02]} Nc6 10. Bd2 {[%emt 0:16:42]} Bd6 {[%emt 0:15:29] D13: Slav Defence: Exchange variation without ...Bf5} (10... Bb4 11. e3 a5 12. Be2 Be4 13. O-O a4 14. Qd1 a3 15. b3 Qa5 16. Bxb4 Nxb4 17. Qd2 O-O 18. Rac1 {1-0 (40) Gerzhoy,L (2577)-Dunn,D (2156) Ottawa 2009}) 11. e3 {[%emt 0:01:51]} Nb4 {[%emt 0:18:40]} 12. Rc1 {[%emt 0:15:31]} Nd3+ $146 {[%emt 0:14:40]} ({Predecessor:} 12... O-O 13. Bc4 Nd3+ 14. Bxd3 Qxb3 15. axb3 Bxd3 16. Ne5 Bxe5 17. dxe5 Rac8 18. Rxc8 Rxc8 {½-½ (27) Horak,O-Kotrba,T (2165) Czechia 2003}) 13. Bxd3 {[%emt 0:00:10]} Qxb3 {[%emt 0:00:06]} 14. axb3 {[%emt 0:00:02]} Bxd3 {[%emt 0:00:06]} 15. Bc3 {[%emt 0:04:12]} O-O {[%emt 0:02:06]} 16. Kd2 {[%emt 0:03:07]} Be4 {[%emt 0:03:25]} 17. Ne1 {[%emt 0:00:13]} b6 {[%emt 0:01:54]} 18. f3 {[%emt 0:00:23]} Bd5 {[%emt 0:00:38]} 19. b4 {[%emt 0:00:09]} Rfc8 {[%emt 0:00:59]} 20. Nd3 {[%emt 0:00:11]} Rc7 {[%emt 0:03:21]} 21. Ra1 {[%emt 0:00:46]} Rac8 {[%emt 0:08:03]} 22. h3 {[%emt 0:00:10]} g6 {[%emt 0:04:58]} 23. Rhc1 {[%emt 0:00:14]} Bc4 {[%emt 0:01:30]} 24. Rg1 {[%emt 0:03:01]} Bh2 {[%emt 0:01:33]} 25. Rh1 {[%emt 0:00:30]} Bd6 {[%emt 0:00:02]} 26. h4 {[%emt 0:00:17]} Bd5 {[%emt 0:00:57]} 27. h5 {[%emt 0:00:11]} Kg7 {[%emt 0:00:31]} 28. hxg6 {[%emt 0:00:46]} hxg6 {[%emt 0:00:07]} 29. e4 {[%emt 0:02:45]} Bc4 {[%emt 0:00:25]} 30. d5+ $1 {[%emt 0:00:10]} f6 {[%emt 0:00:29] [#]} 31. e5 $1 {[%emt 0:00:18]} Be7 $2 {[%emt 0:08:55]} (31... Bxe5 {was worth a try.} 32. Nxe5 Bxd5) 32. d6 {[%emt 0:00:02]} Rd7 {[%emt 0:00:15]} 33. dxe7 {[%emt 0:02:13]} Rxd3+ {[%emt 0:01:24]} 34. Kc2 {[%emt 0:00:02]} f5 {[%emt 0:00:47]} 35. Rxa7 {[%emt 0:04:09]} Re8 {[%emt 0:00:23]} 36. Bd2 {[%emt 0:00:47]} Rd5 {[%emt 0:00:27]} 37. Bh6+ {[%emt 0:04:16]} Kf7 {[%emt 0:01:08]} 38. Bf8 {[%emt 0:00:03]} Rxe5 $2 {[%emt 0:00:22]} (38... Kg8 39. Rh6 Rxe5 40. Rxg6+ Kf7 41. Rg7+ Kf6) 39. Rh7+ {[%emt 0:00:06]} Kg8 {[%emt 0:00:09]} 40. Rg7+ {[%emt 0:00:06]} Kh8 {[%emt 0:00:11]} 41. Ra1 {[%emt 0:00:11]} Bf1 {[%emt 0:01:11]} (41... f4 $18 42. Rxg6 Rh5) 42. Rxf1 {[%emt 0:00:17]} Rc8+ {[%emt 0:00:08]} 43. Kb1 {[%emt 0:00:06]} 1-0

[Event "XVII Profigaia Open 2017"]
[Site "Gaia"]
[Date "2017.06.15"]
[Round "2"]
[White "Padeiro, Jose"]
[Black "De Moura, Fernando Alves"]
[Result "1-0"]
[ECO "A43"]
[WhiteElo "2271"]
[BlackElo "1814"]
[Annotator "ChessBase"]
[PlyCount "61"]
[EventDate "2017.??.??"]
[EventType "swiss"]
[EventCountry "POR"]
[SourceTitle "playchess.com"]
[Source "ChessBase"]
[SourceQuality "1"]
[TimeControl "5400+30"]

1. d4 {[%emt 0:00:00]} Nf6 {[%emt 0:00:30]} 2. c4 {[%emt 0:00:00]} c5 {[%emt 0:00:26]} 3. d5 {[%emt 0:00:17]} d6 {[%emt 0:00:16]} 4. Nc3 {[%emt 0:00:05]} g6 {[%emt 0:01:07]} 5. e4 {[%emt 0:00:16]} Bg7 {[%emt 0:00:36]} 6. Bd3 {[%emt 0:02:48]} a6 {[%emt 0:00:18]} 7. Nge2 {[%emt 0:00:11]} O-O {[%emt 0:03:15]} 8. O-O {[%emt 0:00:04]} Nbd7 {[%emt 0:03:18]} 9. f4 {[%emt 0:00:09]} b5 {[%emt 0:02:17]} 10. cxb5 {[%emt 0:00:15]} axb5 {[%emt 0:00:53]} 11. Bxb5 {[%emt 0:00:06]} Ba6 {[%emt 0:01:58]} 12. Bxa6 {[%emt 0:02:01]} Rxa6 {[%emt 0:00:17]} 13. Kh1 {[%emt 0:00:05]} Qb8 {[%emt 0:04:55]} 14. Qc2 {[%emt 0:00:38]} Qb7 {[%emt 0:04:20]} 15. Rb1 {[%emt 0:01:40]} e6 {[%emt 0:04:36]} 16. dxe6 {[%emt 0:00:54]} fxe6 {[%emt 0:00:19]} 17. a3 {[%emt 0:02:32]} d5 {[%emt 0:04:20]} 18. e5 {[%emt 0:00:18]} Ng4 {[%emt 0:01:36]} 19. Ng3 {[%emt 0:02:49]} Rb6 {[%emt 0:07:27]} 20. Qe2 {[%emt 0:04:19]} Nh6 {[%emt 0:01:28]} 21. b4 {[%emt 0:00:24]} Nf5 {[%emt 0:03:01]} 22. Nxf5 {[%emt 0:02:29]} gxf5 {[%emt 0:02:19]} 23. Bd2 {[%emt 0:07:32]} Rb8 {[%emt 0:13:59]} 24. h3 {[%emt 0:02:30]} Bf8 {[%emt 0:03:39]} 25. Rf3 {[%emt 0:05:12]} d4 {[%emt 0:06:02]} 26. Rg3+ {[%emt 0:01:39]} Bg7 {[%emt 0:06:54]} 27. Na4 {[%emt 0:03:24]} Qa6 {[%emt 0:07:17]} 28. Qh5 {[%emt 0:03:36]} Qc8 {[%emt 0:04:52]} 29. Nxb6 {[%emt 0:00:14]} Rxb6 {[%emt 0:00:01]} 30. Rc1 {[%emt 0:00:45]} c4 {[%emt 0:00:33]} 31. Qg5 {[%emt 0:00:21]} 1-0

[Event "XVII Profigaia Open 2017"]
[Site "Gaia"]
[Date "2017.06.15"]
[Round "2"]
[White "Guimaraes, Rui"]
[Black "Rocha, Nuno Miguel"]
[Result "1-0"]
[ECO "C41"]
[WhiteElo "2141"]
[BlackElo "1287"]
[Annotator "NA"]
[PlyCount "35"]
[EventDate "2017.??.??"]
[EventType "swiss"]
[EventCountry "POR"]
[SourceTitle "playchess.com"]
[Source "ChessBase"]
[SourceQuality "1"]
[TimeControl "5400+30"]

1. e4 {[%emt 0:05:21]} e5 {[%emt 0:00:25]} 2. Nf3 {[%emt 0:00:07]} d6 {[%emt 0:01:20]} 3. d4 {[%emt 0:00:30]} exd4 {[%emt 0:01:32]} 4. Bc4 {[%emt 0:00:50]} h6 {[%emt 0:00:24]} 5. c3 {[%emt 0:01:57]} Nc6 {[%emt 0:02:25]} 6. Qb3 {[%emt 0:02:06]} Qe7 {[%emt 0:00:31]} 7. O-O {[%emt 0:00:19]} Na5 {[%emt 0:02:55]} (7... d3 $14) 8. Qa4+ {[%emt 0:05:52]} Nc6 {[%emt 0:00:12]} 9. cxd4 $14 {[%emt 0:01:42]} (9. Qc2 {[%emt 0:02:21]}) ({Don't do} 9. Nxd4 $6 Bd7 $14) 9... Bd7 {[%emt 0:00:41]} 10. Qc2 {[%emt 0:01:09]} (10. Qd1) 10... Qd8 {[%emt 0:02:32]} 11. Nc3 {[%emt 0:01:54]} Nf6 {[%emt 0:00:27]} 12. e5 {[%emt 0:03:19]} Nh7 {[%emt 0:01:42]} 13. Qb3 {[%emt 0:01:49]} Na5 {[%emt 0:06:54]} 14. Bxf7+ {[%emt 0:01:09]} Ke7 {[%emt 0:00:10]} 15. exd6+ {[%emt 0:02:47]} cxd6 {[%emt 0:03:30]} 16. Re1+ {[%emt 0:00:04]} Kf6 {[%emt 0:00:00]} 17. Ne4+ {[%emt 0:00:12]} Kf5 {[%emt 0:01:09]} 18. Qd5+ {[%emt 0:00:05]} 1-0

[Event "XVII Profigaia Open 2017"]
[Site "Gaia"]
[Date "2017.06.15"]
[Round "2"]
[White "Da Silva, Daniel Leite"]
[Black "Quinta, Daniel"]
[Result "1-0"]
[ECO "A04"]
[WhiteElo "2033"]
[BlackElo "2064"]
[Annotator "NA"]
[PlyCount "87"]
[EventDate "2017.??.??"]
[EventType "swiss"]
[EventCountry "POR"]
[SourceTitle "playchess.com"]
[Source "ChessBase"]
[SourceQuality "1"]
[TimeControl "5400+30"]

1. Nf3 {[%emt 0:03:55]} c6 {[%emt 0:00:18]} 2. b3 d6 {[%emt 0:00:50]} 3. Bb2 {[%emt 0:00:46]} h6 {[%emt 0:00:23]} 4. d3 {[%emt 0:02:41]} Bg4 {[%emt 0:00:33]} 5. e4 {[%emt 0:01:08]} Nd7 {[%emt 0:00:46]} 6. h3 {[%emt 0:01:04]} Bxf3 {[%emt 0:00:45]} 7. Qxf3 {[%emt 0:00:30]} e5 {[%emt 0:00:13]} 8. Nc3 {[%emt 0:03:02]} Qf6 {[%emt 0:00:26]} 9. Qe2 {[%emt 0:01:43]} Ne7 {[%emt 0:00:30]} 10. O-O-O {[%emt 0:00:51]} Ng6 {[%emt 0:00:17]} 11. g3 {[%emt 0:01:06]} Be7 {[%emt 0:00:32]} 12. f4 {[%emt 0:02:36]} exf4 {[%emt 0:00:30]} (12... Bd8 $16 {was necessary.}) 13. Nd5 {[%emt 0:00:54]} Qg5 {[%emt 0:00:53]} 14. Nc7+ {[%emt 0:01:42]} Kf8 {[%emt 0:01:07]} 15. Nxa8 {[%emt 0:02:02]} fxg3+ {[%emt 0:00:27]} 16. Rd2 {[%emt 0:08:36]} Qa5 {[%emt 0:00:48]} 17. Kb1 {[%emt 0:01:40]} Bg5 {[%emt 0:01:00]} 18. Rd1 {[%emt 0:02:04]} h5 {[%emt 0:00:50]} 19. Qe1 $2 {[%emt 0:13:57]} (19. d4 $18) 19... Qxe1 {[%emt 0:00:55]} 20. Rxe1 {[%emt 0:00:18]} h4 {[%emt 0:00:12]} 21. Bc1 $2 {[%emt 0:06:01]} (21. e5 $14 {stays ahead.} Ke7 22. exd6+ Kxd6 23. Ba3+ (23. Bxg7 Rxa8 24. Bb2 Nf4 $11) 23... c5 24. Bg2 Rxa8 25. Bxb7) 21... Be7 $2 {[%emt 0:01:03]} (21... Bxc1 $17 22. Kxc1 (22. Rxc1 Ke7 $17) 22... Ke7) 22. Bg2 {[%emt 0:02:26]} Bf6 {[%emt 0:00:43]} 23. Ref1 {[%emt 0:01:22]} Bd4 {[%emt 0:01:09]} 24. Rf5 {[%emt 0:04:35]} Nge5 {[%emt 0:03:22]} 25. Nc7 {[%emt 0:00:58]} Rh7 {[%emt 0:01:18]} 26. Ne6+ {[%emt 0:00:29]} Ke7 {[%emt 0:00:50]} 27. Nxd4 {[%emt 0:00:19]} f6 {[%emt 0:00:34]} 28. Rf4 {[%emt 0:02:59]} g6 {[%emt 0:00:33]} 29. Ne2 {[%emt 0:02:40]} c5 {[%emt 0:00:43]} 30. Nc3 {[%emt 0:00:34]} g5 {[%emt 0:04:29]} 31. Rf5 {[%emt 0:01:29]} a6 {[%emt 0:02:10]} 32. Rhf1 {[%emt 0:01:16]} b5 {[%emt 0:00:43]} 33. Nd5+ {[%emt 0:00:28]} Kd8 {[%emt 0:00:27]} 34. Nxf6 {[%emt 0:00:41]} Nxf6 {[%emt 0:00:15]} 35. Bxg5 {[%emt 0:01:00]} Kc7 {[%emt 0:03:37]} 36. Bxf6 {[%emt 0:01:44]} Kc6 {[%emt 0:00:10]} 37. Bxe5 {[%emt 0:00:21]} c4 {[%emt 0:01:18]} 38. Bd4 {[%emt 0:01:14]} cxb3 {[%emt 0:00:44]} 39. cxb3 {[%emt 0:00:28]} b4 {[%emt 0:00:18]} 40. e5+ {[%emt 0:00:42]} d5 {[%emt 0:00:11]} 41. Rf6+ {[%emt 0:00:42]} Kb5 {[%emt 0:00:14]} 42. Bxd5 {[%emt 0:00:45]} Rd7 {[%emt 0:00:35]} 43. Bc4+ {[%emt 0:00:21]} Ka5 {[%emt 0:00:27]} 44. Rxa6# 1-0

[Event "XVII Profigaia Open 2017"]
[Site "Gaia"]
[Date "2017.06.15"]
[Round "2"]
[White "Da Silva, Daniel Leite"]
[Black "Quinta, Daniel"]
[Result "0-1"]
[ECO "B01"]
[WhiteElo "2033"]
[BlackElo "2064"]
[Annotator "NA"]
[PlyCount "94"]
[EventDate "2017.??.??"]
[EventType "swiss"]
[EventCountry "POR"]
[SourceTitle "playchess.com"]
[Source "ChessBase"]
[SourceQuality "1"]
[TimeControl "5400+30"]

{[%evp 8,87,37,37,50,35,42,42,48,29,52,64,74,64,109,99,101,90,204,204,192,184,32767,32767,32767,32767,32767,32767,32767,205,282,0,32767,32767,32767,-125,189,32767,32767,32767,34,32767,32767,32767,32767,32767,32767,32767,32767,32767,32767,32767,32767,32767,32767,32767,32767,32767,-383,-359,-364,-464,-355,-464,-540,-618,-695,-621,-635,-654,-748,32767,-752,32767,-1116,-797,-972,32767,32767,-970,-1366,-1161]} 1. e4 d5 {[%emt 0:06:46]} 2. exd5 {[%emt 0:00:00]} Nf6 {[%emt 0:00:08]} 3. Nf3 {[%emt 0:00:27]} Bg4 {[%emt 0:00:28]} 4. Be2 {[%emt 0:00:38]} Nxd5 {[%emt 0:00:19]} 5. d3 {[%emt 0:03:28]} Nc6 {[%emt 0:00:47]} 6. Be3 {[%emt 0:02:49]} Nxe3 {[%emt 0:05:14]} 7. fxe3 {[%emt 0:00:23]} e5 {[%emt 0:02:03]} 8. Nbd2 {[%emt 0:08:03]} Bc5 {[%emt 0:00:52]} 9. e4 {[%emt 0:01:06]} O-O {[%emt 0:00:27]} 10. c3 {[%emt 0:02:44]} a5 {[%emt 0:01:10]} 11. a4 {[%emt 0:01:49]} Qe7 {[%emt 0:01:37]} 12. Qc2 {[%emt 0:04:42]} Nd8 {[%emt 0:03:19]} 13. Qb3 {[%emt 0:06:53]} Ne6 {[%emt 0:01:11]} 14. g3 {[%emt 0:04:39]} Rfd8 {[%emt 0:06:46]} 15. Rf1 {[%emt 0:07:25]} Bh3 {[%emt 0:00:52]} 16. O-O-O {[%emt 0:01:07]} Bxf1 17. Rxf1 {[%emt 0:00:12]} Be3 {[%emt 0:01:49]} 18. Kc2 {[%emt 0:07:26]} Nc5 {[%emt 0:10:29]} 19. Qa2 {[%emt 0:04:12]} Bxd2 {[%emt 0:04:55]} 20. Nxd2 {[%emt 0:01:46]} Qd7 {[%emt 0:02:06]} 21. Rf3 {[%emt 0:02:45]} Qxa4+ {[%emt 0:00:27]} 22. Qxa4 {[%emt 0:00:17]} Nxa4 {[%emt 0:00:09]} 23. Nc4 {[%emt 0:00:38]} f6 {[%emt 0:00:53]} 24. g4 {[%emt 0:01:16]} b5 {[%emt 0:00:39]} 25. Nd2 {[%emt 0:00:29]} Nc5 {[%emt 0:00:55]} 26. g5 {[%emt 0:01:22]} fxg5 {[%emt 0:08:09]} 27. Rf5 {[%emt 0:00:52]} Ne6 {[%emt 0:01:17]} 28. Rxe5 {[%emt 0:01:03]} Nf4 {[%emt 0:00:21]} 29. Bf1 {[%emt 0:01:15]} c6 {[%emt 0:00:43]} 30. Rxg5 {[%emt 0:01:02]} a4 {[%emt 0:00:23]} 31. Rf5 {[%emt 0:02:01]} Rf8 {[%emt 0:01:09]} 32. Rc5 {[%emt 0:02:40]} a3 {[%emt 0:03:06]} 33. bxa3 {[%emt 0:01:36]} Rxa3 {[%emt 0:00:09]} 34. Rxc6 {[%emt 0:03:08]} Ra2+ {[%emt 0:00:20]} 35. Kd1 {[%emt 0:02:05]} Rfa8 {[%emt 0:01:27]} 36. Ke1 {[%emt 0:01:34]} Rb2 {[%emt 0:02:17]} 37. Kf2 {[%emt 0:03:23]} Rxd2+ {[%emt 0:00:49]} 38. Ke3 {[%emt 0:00:09]} Rxh2 {[%emt 0:01:21]} 39. Kxf4 {[%emt 0:00:30]} Rf2+ {[%emt 0:00:15]} 40. Ke5 {[%emt 0:00:30]} Rxf1 {[%emt 0:00:13]} 41. Rb6 {[%emt 0:02:48]} h5 {[%emt 0:02:16]} 42. Rxb5 {[%emt 0:00:44]} h4 {[%emt 0:00:06]} 43. Kd4 {[%emt 0:01:18]} h3 {[%emt 0:00:07]} 44. Rh5 $19 {[%emt 0:00:35]} Rf3 {[%emt 0:00:31]} 45. Kc4 {[%emt 0:00:42]} g6 {[%emt 0:00:32]} 46. Rh6 {[%emt 0:01:07]} Kg7 {[%emt 0:00:08]} 47. Rh4 {[%emt 0:00:23]} Rh8 {[%emt 0:00:30]} 0-1

[Event "XVII Profigaia Open 2017"]
[Site "Gaia"]
[Date "2017.06.15"]
[Round "2"]
[White "Pintor, Simao Maciel Abranc"]
[Black "Fernandes, Claudio Micael Sous"]
[Result "1-0"]
[ECO "A39"]
[WhiteElo "2022"]
[BlackElo "1661"]
[Annotator "NA"]
[PlyCount "45"]
[EventDate "2017.??.??"]
[EventType "swiss"]
[EventCountry "POR"]
[SourceTitle "playchess.com"]
[Source "ChessBase"]
[SourceQuality "1"]
[TimeControl "5400+30"]

1. Nf3 {[%emt 0:02:00]} c5 {[%emt 0:00:29]} 2. c4 {[%emt 0:00:14]} Nc6 {[%emt 0:00:11]} 3. g3 {[%emt 0:00:09]} g6 {[%emt 0:01:09]} 4. Bg2 {[%emt 0:00:06]} Bg7 {[%emt 0:00:02]} 5. O-O {[%emt 0:00:10]} Nf6 {[%emt 0:02:13]} 6. Nc3 {[%emt 0:00:06]} O-O {[%emt 0:00:08]} 7. d4 {[%emt 0:00:20]} cxd4 {[%emt 0:00:02]} 8. Nxd4 {[%emt 0:00:07]} Nxd4 {[%emt 0:01:18]} 9. Qxd4 {[%emt 0:00:06]} d6 {[%emt 0:00:22]} 10. b3 {[%emt 0:02:29]} Ne4 {[%emt 0:02:00]} 11. Qxe4 {[%emt 0:00:16]} Bxc3 {[%emt 0:00:02]} 12. Bg5 {[%emt 0:04:42]} Bxa1 {[%emt 0:05:29]} 13. Bxe7 Qa5 {[%emt 0:05:52]} 14. Bxf8 {[%emt 0:01:21]} Qxa2 {[%emt 0:00:16]} 15. Qe8 {[%emt 0:01:09]} h5 {[%emt 0:00:02]} 16. Bd5 {[%emt 0:01:39]} Be6 {[%emt 0:02:54]} 17. Qxa8 {[%emt 0:00:11]} Bxd5 {[%emt 0:00:20]} 18. cxd5 {[%emt 0:00:24]} Kh7 {[%emt 0:00:29]} 19. Qxb7 {[%emt 0:00:16]} Kg8 {[%emt 0:00:12]} 20. Bxd6 {[%emt 0:00:16]} Bd4 {[%emt 0:00:21]} 21. Qb8+ {[%emt 0:00:41]} Kh7 {[%emt 0:00:58]} 22. Be5 {[%emt 0:00:53]} Bxe5 {[%emt 0:00:02]} 23. Qxe5 {[%emt 0:00:06]} 1-0